bitfinex/quotes_ETHUSD_20240711
["timestamp","ask_amount","ask_price","bid_price","bid_amount"]
[1720709328882,0.64981714,3153.8,3153.0,3.17157]
[1720709328883,1.09819569,3153.6,3153.0,3.17157]
[1720709329081,6.34107,3154.1,3153.0,3.17157]
[1720709329082,0.64981714,3153.9,3153.0,3.17157]
[1720709329282,0.64981714,3153.9,3153.1,0.04276488]
[1720709329488,1.29963428,3154.2,3153.3,5.46708]
[1720709329489,0.64981714,3154.2,3153.3,5.46708]
[1720709329686,1.09800986,3154.1,3153.4,3.17112]
[1720709329983,1.09800986,3154.0,3153.4,3.21384537]
[1720709330195,0.64981714,3154.4,3153.6,3.17096]
[1720709330392,1.09792896,3154.3,3153.6,3.17096]
[1720709330558,1.94861512,3154.5,3153.7,0.317096]
[1720709330763,1.94861512,3154.5,3153.8,3.1707]
[1720709331157,1.94861512,3154.5,3154.2,3.17037]
[1720709331487,1.94861512,3154.5,3153.9,2.49316034]
[1720709331488,1.94861512,3154.5,3154.4,3.17017]
[1720709331868,1.94861512,3154.5,3154.4,6.38264421]
[1720709332196,1.94861512,3154.5,3154.4,10.02160863]
[1720709332547,1.94861512,3154.5,3154.4,6.30143863]
[1720709333192,1.94861512,3154.5,3154.4,3.13126863]
[1720709333492,1.94861512,3154.5,3154.4,0.04147782]
[1720709334001,1.94861512,3154.5,3154.4,0.04207993]
[1720709334162,1.94861512,3154.5,3153.9,3.17067]
[1720709334885,1.94861512,3154.5,3154.0,0.04213258]
[1720709335500,1.94861512,3154.5,3154.2,3.16952789]
[1720709335985,1.94861512,3154.5,3154.3,0.04209309]
[1720709336188,2.68543522,3155.1,3154.3,0.04209309]
[1720709336189,3.16949,3155.1,3154.3,0.04209309]
[1720709336487,0.316949,3155.0,3154.0,3.17051]
[1720709336655,3.16937,3155.2,3154.4,0.04207993]
[1720709336851,1.09773921,3155.1,3154.0,3.17051]
[1720709337153,3.8193444,3155.4,3154.1,3.17042]
[1720709337154,3.16927,3155.3,3154.1,3.17042]
[1720709337355,4.26708283,3155.2,3154.1,3.17042]
[1720709337572,1.09771283,3155.1,3154.2,0.04210625]
[1720709337789,1.09771283,3155.1,3154.3,5.60997]
[1720709337961,0.0008238,3155.2,3154.4,3.17008]
[1720709338262,0.0008238,3155.2,3154.5,3.17]
[1720709338591,0.0008238,3155.2,3154.7,3.16983]
[1720709338951,0.0008238,3155.2,3154.8,0.04202729]
[1720709339184,0.0008238,3155.2,3154.7,3.16983]
[1720709339372,0.0008238,3155.2,3154.9,0.04207893]
[1720709339690,0.0008238,3155.2,3154.8,0.04209208]
[1720709339852,0.0008238,3155.2,3155.0,0.04206577]
[1720709340047,0.0008238,3155.2,3154.9,3.21174893]
[1720709340297,0.0008238,3155.2,3155.1,0.04205261]
[1720709340906,0.0008238,3155.2,3155.0,3.16954]
[1720709341061,0.0008238,3155.2,3155.1,0.6754228]
[1720709341250,0.0008238,3155.2,3155.1,0.0415018]
[1720709341670,0.0008238,3155.2,3154.7,3.16986]
[1720709342061,0.0008238,3155.2,3155.0,3.16956]
[1720709342312,0.0008238,3155.2,3155.1,3.16947]
[1720709342488,0.0008238,3155.2,3155.1,5.4781556]
[1720709342666,0.0008238,3155.2,3155.1,6.34292716]
[1720709343005,0.0008238,3155.2,3155.1,0.0414856]
[1720709343366,0.0008238,3155.2,3154.7,2.2672]
[1720709343560,0.0008238,3155.2,3154.4,10.46009]
[1720709343561,0.0008238,3155.2,3155.1,0.0414856]
[1720709343765,0.0008238,3155.2,3154.4,7.29]
[1720709343961,3.1702938,3155.2,3155.1,0.0414671]
[1720709344308,3.1702938,3155.2,3154.2,9.5572]
[1720709344309,6.98164286,3155.2,3154.2,9.5572]
[1720709344511,6.98164286,3155.2,3154.2,2.2672]
[1720709344725,3.16951,3155.1,3154.3,0.04022609]
[1720709345203,3.16966,3155.0,3154.3,0.04022609]
[1720709345410,3.16983,3154.8,3154.3,0.04022609]
[1720709345577,3.88314163,3154.7,3153.7,2.2672]
[1720709345770,3.88314163,3154.7,3153.2,9.63604349]
[1720709345771,3.17008,3154.5,3154.4,0.03884742]
[1720709345971,3.17018,3154.4,3153.5,7.29]
[1720709346286,3.17018,3154.4,3153.3,8.81058]
[1720709346488,3.17018,3154.4,3153.6,0.03911238]
[1720709346810,3.804195,3154.4,3153.7,0.03915244]
[1720709347166,3.804195,3154.4,3153.3,8.81051]
[1720709347366,3.804195,3154.4,3153.8,0.03913928]
[1720709347603,3.804195,3154.4,3153.3,5.6393]
[1720709347804,3.804195,3154.4,3153.9,0.03912611]
[1720709347964,3.1705,3154.1,3152.9,2.3237]
[1720709348162,3.17063,3154.0,3152.9,2.3237]
[1720709348601,3.5507395,3154.3,3152.9,5.49538]
[1720709348779,3.5507395,3154.3,3153.1,3.17146]
[1720709348990,0.3804195,3154.3,3153.1,3.17146]
[1720709349240,3.16993,3154.7,3153.2,0.317146]
[1720709349441,3.16993,3154.7,3152.9,2.3237]
[1720709349442,1.09790726,3154.6,3153.9,5.63]
[1720709349583,3.1702138,3155.2,3153.9,8.80058]
[1720709349784,3.16951,3155.1,3153.9,2.4594]
[1720709349978,3.16968,3154.9,3153.9,2.4594]
[1720709350302,3.16968,3154.9,3153.4,3.17112]
[1720709350303,3.17005,3154.6,3153.4,2.4316]
[1720709350502,3.804072,3154.5,3153.4,2.4316]
[1720709350709,3.17025,3154.4,3153.4,2.4316]
[1720709350908,3.17027,3154.3,3153.5,0.03917878]
[1720709351720,3.17068,3153.9,3153.5,0.03917878]
[1720709351915,0.317068,3153.8,3152.9,5.46108]
[1720709352119,3.17032,3154.3,3153.0,3.20966627]
[1720709352297,3.17011,3154.5,3153.2,3.17136]
[1720709352493,3.17011,3154.5,3153.3,0.03811675]
[1720709352797,3.17027,3154.3,3153.3,0.03811675]
[1720709352996,3.17038,3154.2,3153.3,0.03811675]
[1720709353197,3.17054,3154.1,3152.9,2.2894]
[1720709353413,3.17057,3154.0,3153.4,0.03822859]
[1720709353619,3.17057,3154.0,3152.9,2.2894]
[1720709353620,3.17091,3153.7,3152.9,2.2894]
[1720709354084,3.17072,3153.9,3153.0,0.03700496]
[1720709354290,3.17063,3154.0,3153.0,0.03700496]
[1720709354483,3.17099,3153.6,3153.0,0.03700496]
[1720709354687,3.17099,3153.6,3152.5,3.17208]
[1720709354988,3.17099,3153.6,3152.6,3.20902766]
[1720709355592,0.317063,3153.9,3152.6,3.20902766]
[1720709355923,3.17088,3153.7,3152.6,3.20897766]
[1720709356232,3.17083,3153.8,3152.7,0.32089777]
[1720709356449,6.34168,3153.8,3152.7,0.32089777]
[1720709356751,3.17099,3153.6,3152.8,0.0370313]
[1720709357045,3.17083,3153.8,3152.8,0.0370313]
[1720709357221,0.317063,3153.9,3152.9,3.17162]
[1720709357424,0.317063,3153.9,3153.0,3.17157]
[1720709357636,3.17068,3153.9,3153.0,0.03700496]
[1720709357947,3.82011958,3154.1,3153.0,0.03700496]
[1720709358244,1.09810587,3154.0,3153.0,0.03700496]
[1720709358446,3.82011958,3154.1,3153.0,0.03700496]
[1720709358447,3.17072,3153.9,3153.0,0.03700496]
[1720709358644,3.17072,3153.9,3152.7,3.17179]
[1720709358645,3.17074,3153.9,3152.7,3.17179]
[1720709358809,3.17074,3153.9,3153.1,0.03699178]
[1720709358810,3.17091,3153.7,3153.1,0.03699178]
[1720709359012,3.17091,3153.7,3152.5,3.17199]
[1720709359243,3.17091,3153.7,3153.2,0.03697861]
[1720709359414,0.317074,3153.8,3152.6,3.1719]
[1720709359415,3.487904,3153.8,3152.6,3.1719]
[1720709359620,3.487904,3153.8,3153.3,0.03696544]
[1720709359621,0.317074,3153.8,3153.3,0.03696544]
[1720709359846,0.317074,3153.8,3152.8,3.17171]
[1720709360050,2.4857,3154.0,3152.9,0.634351]
[1720709360236,1.09812146,3153.9,3152.9,0.67136913]
[1720709360546,3.17059,3154.0,3152.9,3.84300913]
[1720709360747,3.17059,3154.0,3152.9,3.84298913]
[1720709360950,1.09810174,3153.9,3153.0,3.17157]
[1720709361123,3.17047,3154.1,3153.1,0.73844769]
[1720709361323,1.09807926,3154.0,3153.1,0.73844769]
[1720709361653,0.64957046,3154.4,3153.3,3.17128]
[1720709361824,0.64957046,3154.8,3153.8,2.4467]
[1720709362027,3.81889046,3155.3,3154.1,3.17038]
[1720709362349,3.81889046,3155.3,3153.8,2.4467]
[1720709362350,1.09768269,3155.1,3154.2,0.03703447]
[1720709362508,1.09773163,3155.0,3154.0,3.17057]
[1720709362713,1.09773163,3155.0,3153.8,2.4467]
[1720709362714,3.16978,3154.8,3154.1,0.03704764]
[1720709363027,3.16978,3154.8,3153.8,2.4467]
[1720709363226,1.09784736,3154.7,3154.2,0.03703447]
[1720709363439,0.64957046,3154.9,3153.8,3.17074]
[1720709363641,0.64957046,3154.9,3154.3,0.03702131]
[1720709363642,0.38192105,3154.8,3154.3,0.03702131]
[1720709363841,0.38192105,3154.8,3153.8,3.17074]
[1720709364059,0.64957046,3155.0,3154.4,0.03700815]
[1720709364243,1.0977709,3154.9,3154.1,2.4949]
[1720709364442,3.8195048,3155.1,3154.5,0.03699499]
[1720709364768,3.8195048,3155.1,3154.1,2.4949]
[1720709364769,1.09769138,3155.0,3154.6,0.03698183]
[1720709365067,1.09769138,3155.0,3154.1,2.4949]
[1720709365068,1.09769138,3154.9,3154.1,2.4949]
[1720709365370,0.17477062,3154.9,3154.1,2.4949]
[1720709365569,0.17477062,3154.9,3154.2,0.03703447]
[1720709365763,0.6500148,3155.1,3154.2,0.03703447]
[1720709365970,1.74769345,3155.0,3154.2,0.03703447]
[1720709366175,1.09767865,3154.9,3154.2,0.03703447]
[1720709366469,1.74769345,3154.9,3154.2,0.03703447]
[1720709366668,0.49172835,3154.8,3154.2,0.03703447]
[1720709366875,0.49172835,3154.8,3153.9,3.17064]
[1720709367356,0.49172835,3154.8,3153.7,2.6315]
[1720709367357,1.14174315,3154.8,3154.0,0.0370608]
[1720709367552,0.6500148,3154.9,3154.0,3.17055]
[1720709367758,0.6500148,3155.0,3154.0,3.17055]
[1720709367932,1.74775181,3154.9,3154.1,0.03704764]
[1720709368134,0.6500148,3154.9,3154.1,0.03704764]
[1720709369342,1.74776031,3154.8,3154.1,0.03704764]
[1720709369666,1.92259597,3154.7,3153.7,6.00237]
[1720709369847,0.82479083,3154.7,3154.2,0.03703447]
[1720709370044,0.82479083,3154.7,3153.8,3.17074]
[1720709370271,0.82479083,3154.7,3154.3,0.03691251]
[1720709370458,0.39945808,3154.6,3153.7,6.00237]
[1720709370654,0.39945808,3154.6,3154.4,0.03689934]
[1720709370859,1.04947288,3154.6,3153.8,3.17077]
[1720709371247,1.04947288,3154.6,3153.9,0.03698368]
[1720709371743,0.39945808,3154.6,3153.9,0.03698368]
[1720709372274,1.04947288,3154.6,3153.9,0.03698368]
[1720709372572,0.6500148,3154.8,3154.3,3.17024]
[1720709372771,1.09771144,3154.7,3154.4,0.03673494]
[1720709372965,0.6500148,3154.8,3154.0,6.34103]
[1720709373164,0.65084329,3154.9,3154.3,5.58321]
[1720709373365,0.00082849,3154.9,3154.4,0.03673262]
[1720709373550,0.00082849,3154.9,3154.4,3.20689262]
[1720709374059,0.65084329,3154.9,3154.4,0.03673262]
[1720709374263,1.74765532,3154.8,3154.4,0.03673262]
[1720709374468,0.17484838,3154.7,3154.4,0.03673262]
[1720709374653,0.17484838,3154.7,3153.8,3.1707]
[1720709374654,0.6500148,3154.7,3154.0,3.17055]
[1720709374844,0.6500148,3154.7,3154.5,0.03669169]
[1720709375047,0.6500148,3154.7,3154.0,3.17055]
[1720709375239,0.65084329,3154.9,3154.6,0.03667853]
[1720709375544,1.7476662,3154.8,3154.7,0.03666537]
[1720709375743,1.7476662,3154.8,3154.0,6.34105]
[1720709376054,1.0976514,3154.7,3154.1,0.03674434]
[1720709376248,1.7476662,3154.7,3154.1,0.03674434]
[1720709376473,0.6500148,3154.7,3154.1,0.03674434]
[1720709376665,0.65188931,3154.8,3154.0,3.17055]
[1720709376870,0.65188931,3154.8,3154.2,0.03673117]
[1720709377047,0.65190714,3154.8,3154.1,0.03674434]
[1720709377379,0.65190714,3154.8,3154.3,3.17026]
[1720709377692,0.00082849,3154.9,3154.4,0.03670485]
[1720709377986,0.00082849,3154.9,3154.3,3.17026]
[1720709378152,0.00082849,3154.9,3154.4,2.30700485]
[1720709378354,0.00082849,3154.9,3154.6,3.16997]
[1720709378683,0.00082849,3154.9,3154.7,0.35366237]
[1720709379481,0.00082849,3154.9,3154.8,3.16977]
[1720709379679,0.00082849,3154.9,3154.8,6.88954]
[1720709379986,0.00082849,3154.9,3154.8,6.92619221]
[1720709380164,0.00082849,3154.9,3154.8,12.56336221]
[1720709380391,0.00082849,3154.9,3154.8,13.85139813]
[1720709383419,0.00082849,3154.9,3154.8,15.35139813]
[1720709383576,0.00082849,3154.9,3154.8,18.52116813]
[1720709384182,0.00082849,3154.9,3154.8,15.35139813]
[1720709384382,0.00082849,3154.9,3154.8,13.85139813]
[1720709384582,0.00082849,3154.9,3154.8,18.52116813]
[1720709385020,0.00081523,3156.4,3155.8,3.16876]
[1720709385372,0.00081523,3156.4,3155.9,3.20446504]
[1720709385612,0.00081523,3156.4,3155.9,0.03582504]
[1720709385918,0.00081523,3156.4,3156.3,6.33652]
[1720709386275,0.00081523,3156.4,3156.3,3.2040232]
[1720709386706,0.00081523,3156.4,3156.3,0.0357632]
[1720709387198,0.00081523,3156.4,3156.3,0.03575858]
[1720709387588,0.00081523,3156.4,3156.1,3.16846]
[1720709387793,0.00081523,3156.4,3156.2,3.51991588]
[1720709387994,0.00081523,3156.4,3156.3,3.16826]
[1720709388416,0.00081523,3156.4,3156.3,3.20298673]
[1720709388880,0.00081523,3156.4,3156.3,0.03472673]
[1720709389282,0.00081523,3156.4,3155.6,7.29]
[1720709389506,0.07919555,3156.9,3155.6,7.29]
[1720709389507,2.4445,3156.6,3156.3,0.03468979]
[1720709389829,3.322528,3156.6,3155.6,13.62777]
[1720709389986,3.322528,3156.6,3155.6,7.29]
[1720709390192,3.16818,3156.4,3155.7,0.03476868]
[1720709390387,3.322528,3156.6,3155.6,10.45896]
[1720709390583,3.322528,3156.6,3155.7,0.03476868]
[1720709390883,0.9658388,3156.5,3155.7,0.03476868]
[1720709391087,3.16833,3156.3,3155.7,0.03476868]
[1720709391288,6.33708,3156.1,3155.7,0.03476868]
[1720709391545,3.16857,3156.0,3155.1,7.28918842]
[1720709391701,5.58476,3155.9,3155.8,0.03475553]
[1720709392028,3.16903,3155.6,3154.6,3.16996]
[1720709392245,0.316903,3155.5,3154.6,3.16996]
[1720709392390,0.316903,3155.5,3154.7,0.03465852]
[1720709392589,3.16879,3155.8,3154.7,0.03465852]
[1720709393013,3.16897,3155.6,3154.7,0.03465852]
[1720709393429,3.16919,3155.4,3154.2,2.3156]
[1720709393630,6.33844,3155.4,3154.8,0.03474232]
[1720709393930,3.16919,3155.4,3154.3,3.17024]
[1720709394154,0.316919,3155.3,3154.4,3.17014]
[1720709394449,0.316919,3155.3,3154.5,0.03483952]
[1720709394957,3.486189,3155.3,3154.5,0.03483952]
[1720709395153,3.486189,3155.3,3154.2,6.34059]
[1720709395388,3.486189,3155.3,3154.2,3.17029]
[1720709395656,3.16958,3155.0,3154.3,0.03488201]
[1720709396153,3.16958,3155.0,3153.9,3.17059]
[1720709396378,2.415,3155.1,3153.7,11.06001842]
[1720709396379,3.16989,3154.7,3154.4,0.0348804]
[1720709396518,0.07925173,3154.6,3153.7,0.6]
[1720709396718,0.7211499,3154.6,3153.7,0.6]
[1720709396983,0.7211499,3154.6,3153.8,0.03495938]
[1720709397150,0.64189817,3154.6,3153.8,0.03495938]
[1720709397317,3.16984,3154.8,3153.8,0.03495938]
[1720709398738,3.24915174,3154.7,3153.8,0.03495938]
[1720709398934,0.07925174,3154.7,3153.8,0.03495938]
[1720709399139,3.17015,3154.5,3153.8,0.03495938]
[1720709399518,3.17019,3154.4,3153.8,0.03495938]
[1720709399717,3.804224,3154.4,3153.8,0.03495938]
[1720709399919,3.804204,3154.4,3153.8,0.03495938]
[1720709400166,0.634034,3154.4,3153.8,0.03495938]
[1720709400488,3.16983,3154.8,3153.8,0.03495938]
[1720709400769,5.58451,3155.1,3153.8,3.20572938]
[1720709400949,5.58451,3155.1,3154.1,3.17043]
[1720709400950,2.415,3155.1,3154.1,3.17043]
[1720709401271,0.316919,3155.3,3154.2,3.20526672]
[1720709401417,3.486249,3155.3,3154.2,0.03490672]
[1720709401618,3.16954,3155.1,3154.2,0.03490672]
[1720709401934,1.09774065,3155.2,3154.1,3.17041]
[1720709401935,3.16944,3155.2,3154.1,3.17041]
[1720709402131,3.16944,3155.2,3154.2,0.60034772]
[1720709402319,3.16948,3155.1,3154.2,0.03490672]
[1720709402520,3.16957,3155.0,3154.0,2.484]
[1720709402721,3.16993,3154.7,3154.1,0.03491988]
[1720709402955,3.16993,3154.7,3153.6,10.46015842]
[1720709403174,3.16993,3154.7,3153.7,0.03526578]
[1720709403461,3.80397,3154.6,3153.7,0.03526578]
[1720709403626,3.17024,3154.4,3153.7,0.03526578]
[1720709403826,6.3405,3154.4,3153.3,3.17126]
[1720709404055,6.3405,3154.4,3153.1,7.28918842]
[1720709404056,3.17044,3154.2,3153.8,0.03535886]
[1720709404257,0.63397,3154.6,3153.1,7.28918842]
[1720709404258,3.17059,3154.0,3153.1,7.28918842]
[1720709404466,3.17059,3154.0,3152.7,3.17181]
[1720709404467,3.57492794,3153.9,3152.7,3.17181]
[1720709404637,3.57492794,3153.9,3153.2,0.03543787]
[1720709404837,5.85722794,3153.9,3153.2,0.03543787]
[1720709405031,5.85722794,3153.9,3153.3,0.0354247]
[1720709405459,5.85722794,3153.9,3152.8,3.17178]
[1720709405685,2.2823,3153.9,3153.4,0.03541153]
[1720709405846,2.2942,3154.5,3153.3,3.17127]
[1720709406045,5.46428,3154.5,3153.5,0.03539836]
[1720709406260,5.46428,3154.5,3153.4,3.20650153]
[1720709406454,5.46428,3154.5,3153.3,3.17127]
[1720709406455,5.46428,3154.5,3153.6,0.03538519]
[1720709406793,4.09704,3154.4,3153.7,0.03537202]
[1720709406986,4.09704,3154.4,3153.3,3.17127]
[1720709407283,3.17058,3154.0,3153.4,0.03541153]
[1720709407446,3.17048,3154.1,3153.4,0.03541153]
[1720709407645,3.17048,3154.1,3152.9,3.17161]
[1720709407646,3.17048,3154.1,3153.1,3.17146]
[1720709407847,2.2942,3154.5,3153.5,0.03539836]
[1720709408048,3.17017,3154.4,3153.4,3.17117]
[1720709408277,3.17017,3154.4,3153.6,0.03538519]
[1720709408443,2.2942,3154.5,3153.5,3.20645836]
[1720709408649,5.46431,3154.5,3153.7,0.03537202]
[1720709408872,5.46431,3154.5,3153.6,0.03538519]
[1720709408873,3.17053,3154.1,3153.6,0.03538519]
[1720709409077,0.863435,3154.4,3153.8,0.03535886]
[1720709409078,3.17046,3154.2,3153.8,0.03535886]
[1720709409273,3.17046,3154.2,3153.2,7.28918842]
[1720709409461,3.17065,3154.0,3153.2,7.28918842]
[1720709409758,3.17065,3154.0,3153.3,0.03555639]
[1720709409976,0.317065,3153.9,3153.3,0.03555639]
[1720709410288,0.3963383,3153.9,3153.3,0.03555639]
[1720709410486,0.317065,3153.9,3153.3,0.03555639]
[1720709410700,1.51284194,3154.4,3153.3,0.03555639]
[1720709410903,6.3409,3154.2,3153.3,0.03555639]
[1720709411268,3.17028,3154.3,3153.3,0.03555639]
[1720709411470,3.17038,3154.2,3153.3,0.03555639]
[1720709412078,6.34084,3154.2,3153.3,0.03555639]
[1720709412278,2.2942,3154.5,3153.3,0.03555639]
[1720709412484,0.546422,3154.4,3153.3,0.03555639]
[1720709412703,3.17018,3154.4,3153.3,3.20682639]
[1720709413924,2.2942,3154.5,3153.4,3.17112]
[1720709414076,3.16987,3154.7,3153.5,3.17105]
[1720709414412,3.16987,3154.7,3153.5,3.20677186]
[1720709414772,3.16998,3154.6,3153.5,3.20677186]
[1720709414973,3.17018,3154.4,3153.6,0.32067719]
[1720709415215,3.17018,3154.4,3153.7,0.03569553]
[1720709415425,3.17059,3154.0,3153.7,0.03569553]
[1720709415711,3.17044,3154.2,3153.1,3.17147]
[1720709415878,3.17044,3154.2,3152.9,3.17161]
[1720709416085,3.17059,3154.0,3153.2,0.03576137]
[1720709416296,3.17059,3154.0,3153.0,3.20730772]
[1720709416497,3.17059,3154.0,3153.3,0.0357482]
[1720709416710,5.62489,3154.0,3152.8,3.17175]
[1720709416912,5.62489,3154.0,3153.4,0.03573503]
[1720709417117,3.17067,3153.9,3152.9,3.17167]
[1720709417288,2.3702,3154.5,3152.7,9.68438842]
[1720709417474,3.17042,3154.2,3153.2,3.17132]
[1720709417681,3.17042,3154.2,3153.0,3.20731772]
[1720709417682,3.17042,3154.2,3153.0,3.1715]
[1720709417985,3.17024,3154.4,3152.8,1.55425291]
[1720709417986,2.3702,3154.5,3153.4,3.17115]
[1720709418184,2.3702,3154.5,3153.5,0.03572186]
[1720709418597,3.17002,3154.6,3153.5,3.20679186]
[1720709418800,3.17002,3154.6,3153.6,0.63779019]
[1720709419098,3.17002,3154.6,3153.7,0.03569553]
[1720709419609,1.09791404,3154.5,3153.7,0.03569553]
[1720709419810,3.17002,3154.6,3153.7,0.03569553]
[1720709420613,3.16942,3155.2,3154.1,3.17045]
[1720709420822,9.43333538,3155.4,3154.2,3.5230447]
[1720709421120,3.16943,3155.2,3154.2,3.5230447]
[1720709421414,5.61661,3155.4,3154.2,3.5230447]
[1720709421415,1.09771104,3155.1,3154.2,3.5230447]
[1720709421617,1.09771104,3155.0,3154.2,3.5230447]
[1720709421775,1.09771104,3154.9,3154.2,0.0356297]
[1720709421975,4.26748104,3154.8,3153.9,3.17066]
[1720709422208,3.35931104,3154.7,3154.0,0.03553125]
[1720709422380,3.35931104,3154.7,3153.6,3.80875019]
[1720709422381,4.26774104,3154.6,3153.6,3.80875019]
[1720709422590,1.09771104,3154.5,3153.7,0.03557075]
[1720709422793,4.92078514,3154.5,3153.7,0.03557075]
[1720709422998,1.09771104,3154.4,3153.7,0.03557075]
[1720709423192,0.07926409,3154.3,3153.2,5.59728]
[1720709423399,1.17719336,3154.3,3153.3,0.0355541]
[1720709423576,3.8230741,3154.5,3153.3,0.0355541]
[1720709423577,4.26841256,3154.2,3153.3,0.0355541]
[1720709423787,1.52478382,3154.1,3153.1,10.46059842]
[1720709424080,1.09794256,3154.0,3153.2,0.03556727]
[1720709424877,1.09794256,3154.4,3153.4,3.17112]
[1720709425275,1.09794256,3154.4,3153.5,3.20659776]
[1720709425478,1.09794256,3154.4,3153.6,3.17097]
[1720709425683,4.26800256,3154.6,3153.7,0.32064978]
[1720709425928,1.09794256,3154.5,3153.7,0.3561512]
[1720709426085,1.09794256,3154.4,3153.7,2.8475512]
[1720709426434,0.97152618,3155.5,3153.7,2.8475512]
[1720709426435,2.4115,3155.5,3154.4,3.17008]
[1720709426580,2.4115,3155.5,3154.4,6.34016]
[1720709426781,1.09752323,3155.4,3154.5,0.66941211]
[1720709427021,1.09752323,3155.3,3154.5,3.83948211]
[1720709427184,1.09752323,3155.2,3154.6,3.1699]
[1720709427385,1.09752323,3155.4,3154.7,0.03536979]
[1720709427581,1.09752323,3155.3,3154.7,0.03536979]
[1720709427817,3.16927,3155.3,3154.2,3.1703]
[1720709428019,1.60344446,3155.2,3154.3,0.03542243]
[1720709428321,3.16967,3154.9,3154.3,0.03542243]
[1720709428495,1.09752323,3155.1,3153.8,7.28918842]
[1720709428496,3.17007,3154.5,3153.8,7.28918842]
[1720709428819,1.09752323,3154.4,3153.9,0.03542657]
[1720709429038,1.09752323,3154.6,3153.9,0.03542657]
[1720709429183,1.09752323,3154.6,3153.2,9.58648842]
[1720709429184,1.09752323,3154.6,3154.0,3.1705]
[1720709429385,1.09752323,3154.5,3154.1,0.03549959]
[1720709429586,1.09752323,3154.9,3153.2,9.58648842]
[1720709429809,3.16977,3154.8,3153.8,3.17076]
[1720709429993,1.09780784,3154.7,3154.2,3.17036]
[1720709430196,1.09780784,3154.6,3154.3,0.03547326]
[1720709430408,2.4076,3155.1,3154.2,3.17036]
[1720709430610,1.33846686,3155.0,3154.3,0.03547326]
[1720709430813,1.09770686,3154.9,3154.3,0.03547326]
[1720709431023,1.09770686,3154.9,3153.8,3.17072]
[1720709431024,3.16983,3154.8,3153.6,3.17091]
[1720709431208,4.34684394,3154.7,3153.7,0.03555225]
[1720709431530,3.17008,3154.5,3153.7,0.03555225]
[1720709431688,2.4076,3154.3,3153.7,0.03555225]
[1720709431890,1.09770686,3154.2,3153.4,3.17111]
[1720709432089,1.09770686,3154.2,3153.8,0.06808516]
[1720709432460,1.09770686,3154.2,3152.8,7.28918842]
[1720709432461,0.07927168,3154.1,3152.8,7.28918842]
[1720709432589,0.07927168,3154.1,3152.5,3.17206]
[1720709432590,3.17107,3153.6,3152.5,3.17206]
[1720709432788,1.49410019,3153.5,3152.5,3.17206]
[1720709433013,3.56747333,3153.5,3152.5,3.17206]
[1720709433216,1.09821937,3153.4,3152.5,3.17206]
[1720709433434,1.09821937,3153.3,3152.5,3.17206]
[1720709433631,1.09821937,3153.4,3152.5,3.17206]
[1720709433842,3.56747333,3153.5,3152.2,12.94002842]
[1720709433843,3.17147,3153.2,3152.2,7.28918842]
[1720709434023,1.17751573,3153.1,3152.2,7.28918842]
[1720709434232,1.09821937,3153.0,3152.2,7.28918842]
[1720709434523,4.26982937,3153.0,3152.2,7.28918842]
[1720709434704,1.09821937,3152.9,3152.2,7.28918842]
[1720709434910,1.76201212,3152.9,3152.2,7.28918842]
[1720709435111,1.09821937,3152.8,3152.2,7.28918842]
[1720709435317,1.17751758,3152.8,3152.2,7.28918842]
[1720709435511,0.07929821,3152.8,3152.2,7.28918842]
[1720709435739,1.09847807,3152.7,3152.2,7.28918842]
[1720709435919,1.09847807,3152.6,3151.8,3.17272]
[1720709436323,0.5013249,3152.7,3151.8,3.17272]
[1720709436937,0.5013249,3152.7,3151.9,3.17267]
[1720709437135,0.64768412,3153.0,3151.9,3.17267]
[1720709437364,1.09843353,3152.9,3151.9,3.17267]
[1720709437672,6.10802412,3153.1,3152.0,3.17258]
[1720709437882,1.09842787,3153.0,3152.1,3.17248]
[1720709438159,3.17112,3153.5,3152.5,3.17198]
[1720709438160,0.64768412,3153.5,3152.5,3.17198]
[1720709438369,3.17133,3153.3,3152.1,3.17243]
[1720709438521,3.17133,3153.3,3152.2,3.17235]
[1720709438724,1.09832437,3153.2,3152.2,3.17235]
[1720709438962,4.52655504,3153.4,3152.2,3.17235]
[1720709439176,3.17139,3153.2,3152.2,4.53574684]
[1720709439531,1.51460724,3153.3,3152.2,7.70806684]
[1720709439856,4.03820312,3153.3,3152.2,7.70806684]
[1720709440060,3.17113,3153.5,3152.4,3.17209]
[1720709440369,3.17129,3153.3,3152.3,0.06174679]
[1720709440556,3.81892412,3153.4,3152.5,0.06171837]
[1720709440739,1.74603001,3153.3,3152.4,0.06173258]
[1720709440938,1.74603001,3153.3,3152.2,3.17233]
[1720709440939,4.76146289,3153.2,3152.6,0.06170416]
[1720709441140,3.663117,3153.2,3152.5,0.06171837]
[1720709441335,3.663117,3153.2,3152.7,0.06168995]
[1720709441541,3.663117,3153.2,3152.6,0.06170416]
[1720709441768,3.663117,3153.2,3152.8,0.06167574]
[1720709441939,0.3663117,3153.1,3152.7,0.06168995]
[1720709442382,0.3663117,3153.1,3152.1,3.17242]
[1720709442530,3.17159,3153.0,3152.8,0.06167574]
[1720709442726,3.17159,3153.0,3152.0,10.46167842]
[1720709442932,3.17169,3152.9,3152.0,8.33535626]
[1720709443156,3.17169,3152.9,3152.1,0.06177521]
[1720709443539,3.5378417,3153.1,3152.1,0.06177521]
[1720709443747,3.17164,3153.0,3152.1,0.06177521]
[1720709444057,0.64984173,3153.3,3152.2,0.0621008]
[1720709444267,3.82118173,3153.3,3152.2,3.2344208]
[1720709444564,3.1714,3153.2,3151.7,2.4109]
[1720709444886,3.55366417,3153.1,3152.0,6.34505]
[1720709445246,3.17158,3153.0,3152.1,0.06211501]
[1720709445459,3.17158,3153.0,3151.9,3.17262]
[1720709445643,3.1718,3152.8,3152.2,0.0621008]
[1720709445848,3.1718,3152.8,3151.8,3.17272]
[1720709446155,0.31718,3152.7,3152.3,0.06208659]
[1720709446568,3.17207,3152.6,3151.3,2.4574]
[1720709446906,3.17222,3152.4,3151.4,0.06227003]
[1720709447059,3.17248,3152.2,3151.4,0.06227003]
[1720709447226,3.17264,3152.0,3151.4,0.06227003]
[1720709447435,0.39658828,3151.9,3150.9,9.56528842]
[1720709447637,0.39658828,3151.9,3151.0,0.06048229]
[1720709448185,0.317264,3151.9,3151.0,0.06048229]
[1720709448486,3.17291,3151.7,3151.0,0.06048229]
[1720709449145,3.17291,3151.7,3150.6,6.34783]
[1720709449501,3.173,3151.6,3150.5,7.28918842]
[1720709449649,0.07933386,3151.5,3150.7,0.06075108]